bitfinex/quotes_BTCUSD_20250513
["timestamp","ask_amount","ask_price","bid_price","bid_amount"]
[1747166588628,1.47331406,104750.0,104740.0,0.00448417]
[1747166588848,1.09415993,104750.0,104740.0,0.00548417]
[1747166589074,1.70308466,104750.0,104740.0,0.00548417]
[1747166589519,1.71300466,104750.0,104740.0,0.00548417]
[1747166589745,1.72300466,104750.0,104740.0,0.00548417]
[1747166589951,1.82031406,104750.0,104740.0,0.00548417]
[1747166591041,2.50779406,104750.0,104740.0,0.00548417]
[1747166591487,2.51327806,104750.0,104740.0,0.00548417]
[1747166591702,2.42588866,104750.0,104740.0,0.00548417]
[1747166591962,2.12804393,104750.0,104740.0,0.00548417]
[1747166592170,2.42588866,104750.0,104740.0,0.00548417]
[1747166592577,2.07138866,104750.0,104740.0,0.00548417]
[1747166592783,2.39202866,104750.0,104740.0,0.00548417]
[1747166592994,2.49933806,104750.0,104740.0,0.00548417]
[1747166593679,2.48933806,104750.0,104740.0,0.00548417]
[1747166593902,2.49933806,104750.0,104740.0,0.00548417]
[1747166594122,2.51273806,104750.0,104740.0,0.00548417]
[1747166594344,2.42542866,104750.0,104740.0,0.00548417]
[1747166594553,2.41542866,104750.0,104740.0,0.00548417]
[1747166594776,2.42542866,104750.0,104740.0,0.00548417]
[1747166595671,2.41994466,104750.0,104740.0,0.00548417]
[1747166595910,2.51725406,104750.0,104740.0,0.00548417]
[1747166598304,2.41994466,104750.0,104740.0,0.00548417]
[1747166598519,2.08869993,104750.0,104740.0,0.00548417]
[1747166598727,2.42074466,104750.0,104740.0,0.00548417]
[1747166600522,0.21006332,104730.0,104720.0,0.002]
[1747166600790,0.21006332,104730.0,104720.0,0.00214521]
[1747166600791,1.18414252,104730.0,104720.0,0.00214521]
[1747166601029,1.76983198,104730.0,104720.0,0.00214521]
[1747166601292,1.75991198,104730.0,104720.0,0.00214521]
[1747166601839,1.86462252,104730.0,104720.0,0.00214521]
[1747166602149,2.46631198,104730.0,104720.0,0.00214521]
[1747166602404,2.45731198,104730.0,104720.0,0.00214521]
[1747166602631,2.47531198,104730.0,104720.0,0.00214521]
[1747166603574,2.48531198,104730.0,104720.0,0.00214521]
[1747166605236,1.88962252,104730.0,104720.0,0.00214521]
[1747166605459,2.48531198,104730.0,104720.0,0.00214521]
[1747166607053,1.78791198,104730.0,104720.0,0.00214521]
[1747166609652,1.4475183,104730.0,104720.0,0.00214521]
[1747166609931,2.38320303,104730.0,104720.0,0.00214521]
[1747166610608,2.40312303,104730.0,104720.0,0.00214521]
[1747166610842,2.03337745,104730.0,104720.0,0.00214521]
[1747166611067,2.04337745,104730.0,104720.0,0.00214521]
[1747166611286,2.44307243,104730.0,104720.0,0.00214521]
[1747166611664,2.33584303,104730.0,104720.0,0.00214521]
[1747166611881,2.34576303,104730.0,104720.0,0.00214521]
[1747166612129,2.39146303,104730.0,104720.0,0.00214521]
[1747166612846,2.38154303,104730.0,104720.0,0.00214521]
[1747166613309,2.44154303,104730.0,104720.0,0.00214521]
[1747166613538,2.56550449,104730.0,104720.0,0.00214521]
[1747166613789,2.55550449,104730.0,104720.0,0.00214521]
[1747166614787,2.46811509,104730.0,104720.0,0.00214521]
[1747166615270,2.42241509,104730.0,104720.0,0.00214521]
[1747166616211,2.45491509,104730.0,104720.0,0.00214521]
[1747166618134,2.47671509,104730.0,104720.0,0.00214521]
[1747166619186,1.81723509,104730.0,104720.0,0.00214521]
[1747166619397,1.84830563,104730.0,104720.0,0.00214521]
[1747166619618,2.44399509,104730.0,104720.0,0.00214521]
[1747166619838,2.55130449,104730.0,104720.0,0.00214521]
[1747166620728,0.21018373,104670.0,104660.0,0.64554298]
[1747166621160,0.21018373,104670.0,104660.0,0.64654298]
[1747166622054,0.21332798,104670.0,104660.0,0.53209402]
[1747166622274,0.20377461,104670.0,104660.0,0.90512605]
[1747166622480,0.20577461,104670.0,104660.0,0.91600772]
[1747166623788,0.02425127,104670.0,104660.0,0.96100772]
[1747166623997,0.21532798,104670.0,104660.0,0.96100772]
[1747166624612,0.21532798,104670.0,104660.0,0.95012605]
[1747166624824,0.20577461,104670.0,104660.0,0.95012605]
[1747166625244,0.20577461,104670.0,104660.0,0.65228132]
[1747166625645,0.20577461,104670.0,104660.0,0.94912605]
[1747166627246,0.19622096,104670.0,104660.0,0.4601873]
[1747166627451,0.19622096,104670.0,104660.0,0.75803203]
[1747166627670,0.19622096,104670.0,104660.0,0.4601873]
[1747166627886,0.19622096,104670.0,104660.0,0.68284473]
[1747166628100,0.29353036,104670.0,104660.0,0.385]
[1747166628322,0.29353036,104670.0,104660.0,0.045]
[1747166628541,1.30353716,104670.0,104660.0,0.0217]
[1747166628755,1.00569243,104670.0,104660.0,0.0217]
[1747166629016,1.00269243,104670.0,104660.0,0.0217]
[1747166629221,0.03822455,104640.0,104630.0,0.35930567]
[1747166630071,0.01911177,104640.0,104630.0,0.69930567]
[1747166630319,0.11400693,104670.0,104660.0,0.19109497]
[1747166630526,0.21732762,104670.0,104660.0,0.90211609]
[1747166630733,0.00714425,104670.0,104660.0,0.90211609]
[1747166630942,0.00714425,104670.0,104660.0,0.93077932]
[1747166631171,0.22169513,104690.0,104680.0,0.53105846]
[1747166631381,0.22169513,104690.0,104680.0,0.82890319]
[1747166631607,0.21214376,104690.0,104680.0,0.92621259]
[1747166632033,0.20259212,104690.0,104680.0,0.92621259]
[1747166632233,0.20259212,104690.0,104680.0,0.97011259]
[1747166632640,0.19304021,104690.0,104680.0,0.97011259]
[1747166632855,0.19804021,104690.0,104680.0,0.4812094]
[1747166633054,0.19804021,104690.0,104680.0,0.97011259]
[1747166633679,0.20759212,104690.0,104680.0,0.97011259]
[1747166633891,0.21714376,104690.0,104680.0,0.97011259]
[1747166634511,0.21714376,104690.0,104680.0,0.77905413]
[1747166635157,0.21714376,104690.0,104680.0,0.97011259]
[1747166635982,0.03565474,104690.0,104680.0,0.97966542]
[1747166636197,0.22669495,104690.0,104680.0,0.97966542]
[1747166636394,0.22669495,104690.0,104680.0,0.97966551]
[1747166636605,0.22669495,104690.0,104680.0,0.97011259]
[1747166636818,0.20759203,104690.0,104680.0,0.97011259]
[1747166637667,0.19804021,104690.0,104680.0,0.97011259]
[1747166637917,0.19804021,104690.0,104680.0,0.77905413]
[1747166639615,0.20759203,104690.0,104680.0,0.97011259]
[1747166639822,0.22669549,104690.0,104680.0,0.97011259]
[1747166640036,0.21714394,104690.0,104680.0,0.97011259]
[1747166640255,0.007,104690.0,104680.0,1.39492438]
[1747166640479,0.002,104710.0,104700.0,0.60617414]
[1747166640684,0.06154754,104730.0,104720.0,0.59658366]
[1747166640894,0.07124121,104730.0,104720.0,0.87533021]
[1747166641108,0.27175608,104730.0,104720.0,0.68434473]
[1747166641355,0.26220836,104730.0,104720.0,0.68434473]
[1747166642031,0.27175672,104730.0,104720.0,0.68434473]
[1747166642243,0.26320873,104730.0,104720.0,0.76452112]
[1747166642464,0.26320873,104730.0,104720.0,0.79549316]
[1747166642693,0.3397308,104730.0,104720.0,0.36097677]
[1747166642904,0.3397308,104730.0,104720.0,0.02097677]
[1747166642905,0.4370402,104730.0,104720.0,0.02097677]
[1747166643161,0.36051813,104730.0,104720.0,0.02097677]
[1747166643359,0.07224103,104730.0,104720.0,0.54285625]
[1747166643573,0.06269249,104730.0,104720.0,0.58525433]
[1747166643782,0.26320827,104730.0,104720.0,0.65391638]
[1747166644003,0.25366037,104730.0,104720.0,0.4629309]
[1747166645633,0.05314495,104730.0,104720.0,0.65391638]
[1747166645845,0.05314495,104730.0,104720.0,0.66346565]
[1747166645846,0.28230443,104730.0,104720.0,0.66346565]
[1747166646046,0.27275662,104730.0,104720.0,0.65391638]
[1747166646466,0.26320863,104730.0,104720.0,0.65391638]
[1747166647689,0.26320863,104730.0,104720.0,0.63993961]
[1747166648840,0.26320863,104730.0,104720.0,0.44895413]
[1747166649025,0.26320863,104730.0,104720.0,0.63993961]
[1747166650326,0.26320863,104730.0,104720.0,0.44895413]
[1747166650730,0.26320863,104730.0,104720.0,0.64948888]
[1747166650908,0.26320863,104730.0,104720.0,0.63993961]
[1747166651432,0.05314495,104730.0,104720.0,1.07328954]
[1747166651633,0.05314495,104730.0,104720.0,1.41328954]
[1747166652404,0.05214495,104730.0,104720.0,1.40628954]
[1747166652624,0.05214495,104730.0,104720.0,1.41028954]
[1747166653297,0.05214495,104730.0,104720.0,0.81460008]
[1747166653506,0.05214495,104730.0,104720.0,1.41028954]
[1747166653714,0.05214495,104730.0,104720.0,1.41728954]
[1747166653915,0.05214495,104730.0,104720.0,1.41328954]
[1747166654111,0.05214495,104730.0,104720.0,1.41128954]
[1747166654540,0.05314495,104730.0,104720.0,1.42228954]
[1747166655197,0.05314495,104730.0,104720.0,1.83568954]
[1747166655811,0.05314495,104730.0,104720.0,1.49964901]
[1747166656032,0.05314495,104730.0,104720.0,1.78942901]
[1747166656033,0.26320863,104730.0,104720.0,1.78942901]
[1747166656250,0.08178838,104730.0,104720.0,1.79897819]
[1747166656471,0.09133628,104730.0,104720.0,1.79897828]
[1747166656722,0.0817882,104730.0,104720.0,1.80852746]
[1747166656953,0.05314495,104730.0,104720.0,2.15841854]
[1747166660621,0.05314495,104730.0,104720.0,1.86057381]
[1747166661117,0.05314495,104730.0,104720.0,2.17295939]
[1747166662064,0.05314495,104730.0,104720.0,1.87511466]
[1747166664530,0.05314495,104730.0,104720.0,2.17295939]
[1747166665468,0.05314495,104730.0,104720.0,1.87511466]
[1747166666815,0.05314495,104730.0,104720.0,2.17295939]
[1747166666931,0.05314495,104730.0,104720.0,1.87511466]
[1747166667975,0.05314495,104730.0,104720.0,2.17295939]
[1747166668839,0.05314495,104730.0,104720.0,2.48795939]
[1747166669040,0.05314495,104730.0,104720.0,2.19011466]
[1747166669243,0.05314495,104730.0,104720.0,2.48795939]
[1747166672246,0.05314495,104730.0,104720.0,1.76784901]
[1747166672451,0.0722403,104730.0,104720.0,2.07888901]
[1747166672655,0.06269249,104730.0,104720.0,2.10749563]
[1747166672847,0.07224021,104730.0,104720.0,2.09794691]
[1747166673050,0.07224021,104730.0,104720.0,2.097947]
[1747166673236,0.06269249,104730.0,104720.0,2.10749581]
[1747166673385,0.07224021,104730.0,104720.0,2.11704453]
[1747166673596,0.07224012,104730.0,104720.0,2.11704453]
[1747166674050,0.08178784,104730.0,104720.0,2.097947]
[1747166674393,0.06269249,104730.0,104720.0,2.11704435]
[1747166675786,0.06269249,104730.0,104720.0,2.10749572]
[1747166676111,0.06269249,104730.0,104720.0,1.80010227]
[1747166676282,0.06269249,104730.0,104720.0,2.10749572]
[1747166676482,0.07224012,104730.0,104720.0,2.11704453]
[1747166676678,0.06269249,104730.0,104720.0,2.11704453]
[1747166677087,0.08178838,104730.0,104720.0,1.15500428]
[1747166677309,0.0722403,104730.0,104720.0,1.77279828]
[1747166677581,0.09133628,104730.0,104720.0,1.77279819]
[1747166677811,0.0817882,104730.0,104720.0,1.78234728]
[1747166678010,0.07224021,104730.0,104720.0,1.79189618]
[1747166678409,0.08178802,104730.0,104720.0,2.08379819]
[1747166678775,0.08178802,104730.0,104720.0,2.09334719]
[1747166679329,0.08178802,104730.0,104720.0,2.09334728]
[1747166679562,0.08178802,104730.0,104720.0,2.10289628]
[1747166680186,0.08178802,104730.0,104720.0,2.11244518]
[1747166680387,0.05314495,104730.0,104720.0,2.41983854]
[1747166680572,0.05314495,104730.0,104720.0,2.43437939]
[1747166680776,0.05314495,104730.0,104720.0,3.07731939]
[1747166681020,0.05314495,104730.0,104720.0,2.88107539]
[1747166681231,0.05314495,104730.0,104720.0,2.74154539]
[1747166682203,0.05314495,104730.0,104720.0,2.73027939]
[1747166683131,0.05314495,104730.0,104720.0,2.78071339]
[1747166683998,0.05314495,104730.0,104720.0,2.73261939]
[1747166685139,0.05314495,104730.0,104720.0,2.48107939]
[1747166685550,0.05314495,104730.0,104720.0,3.00654939]
[1747166687808,0.05314495,104730.0,104720.0,2.83469939]
[1747166687981,0.05314495,104730.0,104720.0,2.69364139]
[1747166688475,0.05314495,104730.0,104720.0,2.60411339]
[1747166690001,0.05314495,104730.0,104720.0,2.63801339]
[1747166690989,0.05314495,104730.0,104720.0,1.81297939]
[1747166691245,0.30970863,104730.0,104720.0,0.016]
[1747166691471,0.4835401,104730.0,104720.0,0.016]
[1747166692114,0.78138483,104730.0,104720.0,0.016]
[1747166692608,0.25662351,104700.0,104690.0,0.34]
[1747166692829,0.05215419,104690.0,104680.0,0.50045611]
[1747166693047,0.25274686,104690.0,104680.0,0.49090319]
[1747166693251,0.25664385,104690.0,104680.0,0.63984473]
[1747166693458,0.25664385,104690.0,104680.0,0.83090319]
[1747166693675,0.24709212,104690.0,104680.0,0.83090319]
[1747166693903,0.25664376,104690.0,104680.0,0.92821259]
[1747166694114,0.25764376,104690.0,104680.0,0.94321259]
[1747166695058,0.25864376,104690.0,104680.0,0.95021259]
[1747166695462,0.25857692,104690.0,104680.0,0.95021259]
[1747166698692,0.24902528,104690.0,104680.0,0.95021259]
[1747166702057,0.25857692,104690.0,104680.0,0.95021259]
[1747166702261,0.06753617,104690.0,104680.0,0.95021259]
[1747166702469,0.01155128,104690.0,104680.0,0.95021259]
[1747166702682,0.23124623,104690.0,104680.0,0.95021259]
[1747166702888,0.24439495,104690.0,104680.0,0.95021259]
[1747166703103,0.26779495,104690.0,104680.0,0.95021259]
[1747166703357,0.26779549,104690.0,104680.0,0.95021259]
[1747166703873,0.26779549,104690.0,104680.0,0.4613094]
[1747166704102,0.25824394,104690.0,104680.0,0.95021259]
[1747166704784,0.25724394,104690.0,104680.0,0.94321259]
[1747166705291,0.25724394,104690.0,104680.0,0.94621259]
[1747166705530,0.25724394,104690.0,104680.0,0.64836786]
[1747166705765,0.25624394,104690.0,104680.0,0.93121259]
[1747166706059,0.06520274,104690.0,104680.0,0.93721259]
[1747166706309,0.23024632,104690.0,104680.0,0.93721259]
[1747166706539,0.22069504,104690.0,104680.0,0.93721259]
[1747166706746,0.24429504,104690.0,104680.0,0.63936786]
[1747166706994,0.24429504,104690.0,104680.0,0.93721259]
[1747166707408,0.23474358,104690.0,104680.0,0.93721259]
[1747166707630,0.25664358,104690.0,104680.0,0.93721259]
[1747166707881,0.71876823,104690.0,104680.0,0.011]
[1747166708138,1.38062908,104690.0,104680.0,0.011]
[1747166708361,0.55352846,104670.0,104660.0,0.002]
[1747166708576,0.65083786,104670.0,104660.0,0.002]
[1747166709245,0.66537871,104670.0,104660.0,0.002]
[1747166709695,0.2555239,104650.0,104640.0,0.002]
[1747166709915,0.3528333,104650.0,104640.0,0.00248202]
[1747166712263,0.3538333,104650.0,104640.0,0.00748202]
[1747166712732,0.3538333,104650.0,104640.0,0.00848202]
[1747166712968,0.75144531,104650.0,104640.0,0.00848202]
[1747166713207,0.66621888,104650.0,104640.0,0.00848202]
[1747166714172,1.00621888,104650.0,104640.0,0.00848202]
[1747166714417,0.56844967,104630.0,104620.0,0.002]
[1747166714659,0.56844967,104630.0,104620.0,0.00214425]
[1747166714660,0.66077349,104630.0,104620.0,0.00214425]
[1747166716148,0.66177349,104630.0,104620.0,0.00514425]
[1747166716406,0.66177349,104630.0,104620.0,0.00814425]
[1747166716886,0.66077349,104630.0,104620.0,0.00514425]
[1747166718020,0.66077349,104630.0,104620.0,0.00214425]
[1747166718294,0.66177349,104630.0,104620.0,0.00614425]
[1747166718519,0.97415907,104630.0,104620.0,0.00614425]
[1747166718753,0.97415907,104630.0,104620.0,0.00214425]
[1747166718754,0.67531434,104630.0,104620.0,0.00214425]
[1747166718978,0.67631434,104630.0,104620.0,0.00214425]
[1747166719255,0.67731434,104630.0,104620.0,0.00414425]
[1747166719481,0.66277349,104630.0,104620.0,0.00414425]
[1747166720146,0.35537349,104630.0,104620.0,0.30198898]
[1747166720599,0.23556409,104630.0,104620.0,0.30198898]
[1747166720870,0.23556409,104630.0,104620.0,0.35430606]
[1747166721089,0.23556409,104630.0,104620.0,0.30198898]
[1747166721317,0.23556409,104630.0,104620.0,0.00414425]
[1747166721550,0.23556409,104630.0,104620.0,0.30198898]
[1747166721758,0.22600706,104630.0,104620.0,0.30198898]
[1747166722202,0.20270706,104630.0,104620.0,0.49315701]
[1747166722424,0.20270706,104630.0,104620.0,0.00414425]
[1747166722652,0.03067108,104630.0,104620.0,0.90554681]
[1747166722878,0.21226409,104630.0,104620.0,0.90554681]
[1747166723731,0.20270706,104630.0,104620.0,0.90554681]
[1747166723963,0.02111433,104630.0,104620.0,0.90554681]
[1747166724193,0.21226409,104630.0,104620.0,0.90554681]
[1747166725190,0.20270706,104630.0,104620.0,0.90554681]
[1747166725931,0.19314976,104630.0,104620.0,0.90554681]
[1747166726783,0.19314976,104630.0,104620.0,0.83315701]
[1747166726969,0.19314976,104630.0,104620.0,0.64198898]
[1747166727351,0.23734976,104630.0,104620.0,0.34414425]
[1747166727549,0.33465916,104630.0,104620.0,0.34414425]
[1747166728118,0.33465916,104630.0,104620.0,0.00414425]
[1747166728333,0.72252125,104630.0,104620.0,0.00414425]
[1747166728548,0.42467652,104630.0,104620.0,0.00414425]
[1747166728761,0.7370621,104630.0,104620.0,0.00414425]
[1747166729377,0.94399902,104630.0,104620.0,0.00414425]
[1747166730245,0.76634874,104620.0,104610.0,0.03]
[1747166730486,0.35887649,104620.0,104610.0,0.03]
[1747166731166,0.69887649,104620.0,104610.0,0.03]
[1747166731393,1.50749814,104620.0,104610.0,0.03]
[1747166731615,0.58704544,104610.0,104600.0,0.102]
[1747166731829,1.49669649,104610.0,104600.0,0.102]
[1747166732041,1.59400589,104610.0,104600.0,0.102]
[1747166732267,1.49669649,104610.0,104600.0,0.102]
[1747166732483,0.99191484,104610.0,104600.0,0.102]
[1747166732947,0.98803484,104610.0,104600.0,0.102]
[1747166733217,0.68635484,104610.0,104600.0,0.102]
[1747166733418,0.36089569,104610.0,104600.0,0.102]
[1747166734059,0.86867734,104610.0,104600.0,0.102]
[1747166734287,1.20867734,104610.0,104600.0,0.102]
[1747166734751,1.21859734,104610.0,104600.0,0.102]
[1747166734973,1.22859734,104610.0,104600.0,0.0794]
[1747166735188,1.32590674,104610.0,104600.0,0.0794]
[1747166735631,0.71381569,104610.0,104600.0,0.0794]
[1747166735899,1.22859734,104610.0,104600.0,0.0794]
[1747166736181,1.21859734,104610.0,104600.0,0.0794]
[1747166736622,1.22859734,104610.0,104600.0,0.0794]
[1747166738471,1.21859734,104610.0,104600.0,0.0794]
[1747166738690,1.31590674,104610.0,104600.0,0.0794]
[1747166738919,1.21859734,104610.0,104600.0,0.0794]
[1747166739160,0.99311484,104610.0,104600.0,0.0794]
[1747166739598,0.70389569,104610.0,104600.0,0.0794]
[1747166739892,0.93235484,104610.0,104600.0,0.0794]
[1747166740111,0.60681484,104610.0,104600.0,0.0794]
[1747166741926,0.30305484,104610.0,104600.0,0.0794]
[1747166742151,0.30305484,104610.0,104600.0,0.1018]
[1747166742787,0.30305484,104610.0,104600.0,0.0794]
[1747166743409,0.30305484,104610.0,104600.0,0.1029]
[1747166744112,0.30305484,104610.0,104600.0,0.0794]
[1747166745412,0.005,104610.0,104600.0,0.30494602]
[1747166745624,0.03367638,104610.0,104600.0,0.83312767]
[1747166745837,0.22486333,104610.0,104600.0,0.83312767]
[1747166746055,0.21530457,104610.0,104600.0,0.31650458]
[1747166746705,0.23442173,104610.0,104600.0,0.65650458]
[1747166746914,0.0306762,104610.0,104600.0,1.17084636]
[1747166747120,0.02111725,104610.0,104600.0,0.83084645]
[1747166747347,0.00955849,104610.0,104600.0,0.83084645]
[1747166747588,0.00955767,104620.0,104610.0,0.23798631]
[1747166747788,0.21984185,104620.0,104610.0,0.74276796]
[1747166748005,0.21028418,104620.0,104610.0,0.0468]
[1747166748211,0.20074544,104610.0,104600.0,0.29540458]
[1747166748436,0.21130448,104610.0,104600.0,0.29540458]
[1747166748659,0.21130448,104610.0,104600.0,0.39071398]
[1747166748898,0.21030347,104610.0,104600.0,1.21269563]
[1747166749112,0.21030429,104610.0,104600.0,1.11538623]
[1747166749324,0.21030429,104610.0,104600.0,0.90957608]
[1747166749543,0.21030429,104610.0,104600.0,0.7647715]
[1747166749759,0.21030429,104610.0,104600.0,0.1258]
[1747166749760,0.30761369,104610.0,104600.0,0.1258]
[1747166749977,0.30761369,104610.0,104600.0,0.0794]
[1747166750217,0.35759186,104610.0,104600.0,0.0794]
[1747166750661,0.37929186,104610.0,104600.0,0.0794]
[1747166750876,0.67926336,104610.0,104600.0,0.0814]
[1747166751094,0.33031369,104610.0,104600.0,0.0814]
[1747166751331,0.66772604,104610.0,104600.0,0.0814]
[1747166751595,0.36775454,104610.0,104600.0,0.0814]
[1747166751820,0.34685454,104610.0,104600.0,0.0794]
[1747166752045,0.31261369,104610.0,104600.0,0.0794]
[1747166752696,0.31261369,104610.0,104600.0,0.08892144]
[1747166752933,0.31261369,104610.0,104600.0,0.0794]
[1747166753355,0.31261369,104610.0,104600.0,0.1031]
[1747166753356,0.21530429,104610.0,104600.0,0.1031]
[1747166753785,0.31261369,104610.0,104600.0,0.0794]
[1747166754674,0.33491369,104610.0,104600.0,0.0794]
[1747166755324,0.37205454,104610.0,104600.0,0.0794]
[1747166755542,1.26919413,104610.0,104600.0,0.0794]
[1747166756191,0.71205454,104610.0,104600.0,0.0794]
[1747166756408,1.21658596,104610.0,104600.0,0.0794]
[1747166756901,0.73197454,104610.0,104600.0,0.0794]
[1747166757117,1.26321776,104610.0,104600.0,0.0794]
[1747166758396,1.86825776,104610.0,104600.0,0.0794]
[1747166758606,1.34380634,104610.0,104600.0,0.0794]
[1747166758822,1.41440394,104610.0,104600.0,0.0794]
[1747166759292,1.82162596,104610.0,104600.0,0.0794]
[1747166759509,1.31709454,104610.0,104600.0,0.0794]
[1747166759732,0.37205454,104610.0,104600.0,0.0794]
[1747166760384,1.21658596,104610.0,104600.0,0.0794]
[1747166761020,0.71205454,104610.0,104600.0,0.0794]
[1747166761472,1.31389536,104610.0,104600.0,0.0794]
[1747166762571,1.21658596,104610.0,104600.0,0.0794]
[1747166763054,0.71205454,104610.0,104600.0,0.0794]
[1747166763251,1.81882596,104610.0,104600.0,0.0794]
[1747166764949,1.31429454,104610.0,104600.0,0.0794]
[1747166765173,1.81882596,104610.0,104600.0,0.0794]
[1747166765414,1.91613536,104610.0,104600.0,0.0794]
[1747166766494,1.92605536,104610.0,104600.0,0.0794]
[1747166766734,1.82874596,104610.0,104600.0,0.0794]
[1747166767660,1.81882596,104610.0,104600.0,0.0794]
[1747166767876,1.82874596,104610.0,104600.0,0.0794]
[1747166768617,0.02869073,104560.0,104550.0,0.53777285]
[1747166768863,0.21996846,104560.0,104550.0,0.55200996]
[1747166769057,0.21040513,104560.0,104550.0,0.64931936]
[1747166769285,0.21040513,104560.0,104550.0,0.55200996]
[1747166769972,0.20084152,104560.0,104550.0,0.35046921]
[1747166770204,0.20084152,104560.0,104550.0,0.03693711]
[1747166770916,0.20084152,104560.0,104550.0,0.02274814]
[1747166770917,0.29815092,104560.0,104550.0,0.02274814]
[1747166771140,0.29915092,104560.0,104550.0,0.00804814]
[1747166771365,0.30015092,104560.0,104550.0,0.00804814]
[1747166771611,0.29915092,104560.0,104550.0,4.814e-05]
[1747166771884,0.29915092,104560.0,104550.0,0.00604814]
[1747166771885,0.34819355,104560.0,104550.0,0.00604814]
[1747166772142,0.29815092,104560.0,104550.0,4.814e-05]
[1747166772357,0.29915092,104560.0,104550.0,4.814e-05]
[1747166772641,0.30015092,104560.0,104550.0,0.00404814]
[1747166773080,0.64015092,104560.0,104550.0,0.00404814]
[1747166773314,0.79710117,104560.0,104550.0,0.00404814]
[1747166773778,1.30163259,104560.0,104550.0,0.00404814]
[1747166773993,1.37815466,104560.0,104550.0,0.00404814]
[1747166774214,0.87162324,104560.0,104550.0,0.003817]
[1747166774465,1.37615466,104560.0,104550.0,0.003817]
[1747166774732,1.30063259,104560.0,104550.0,0.004817]
[1747166774947,1.79031466,104560.0,104550.0,0.0065982]
[1747166775155,0.20095674,104500.0,104490.0,0.00085787]
[1747166775364,0.20095674,104500.0,104490.0,0.03356067]
[1747166775587,0.20095674,104500.0,104490.0,0.04743756]
[1747166775817,0.29826614,104500.0,104490.0,0.02315787]
[1747166776074,0.29826614,104500.0,104490.0,0.0223]
[1747166776293,0.20097598,104490.0,104480.0,0.0401144]
[1747166776511,0.20112052,104490.0,104480.0,0.0401144]
[1747166776720,0.02885458,104490.0,104480.0,0.23153859]
[1747166776930,0.21069053,104490.0,104480.0,0.3801144]
[1747166777145,0.00014454,104490.0,104480.0,0.58194857]
[1747166777365,0.01928393,104490.0,104480.0,0.58194857]
[1747166777584,0.00014454,104490.0,104480.0,0.59151977]
[1747166777805,0.01928374,104490.0,104480.0,0.66310665]
[1747166778023,0.02985357,104490.0,104480.0,0.59151977]
[1747166778275,0.02028374,104490.0,104480.0,0.60454857]
[1747166778510,0.30999975,104490.0,104480.0,0.02822438]
[1747166779165,0.91505324,104490.0,104480.0,0.0178144]
[1747166779394,0.48927787,104490.0,104480.0,0.0178144]
[1747166779626,0.82927787,104490.0,104480.0,0.0178144]
[1747166780102,0.82827787,104490.0,104480.0,0.0178144]
[1747166780325,0.76629665,104490.0,104480.0,0.0178144]
[1747166780772,0.84281872,104490.0,104480.0,0.0178144]
[1747166780996,0.78806267,104490.0,104480.0,0.02256597]
[1747166781442,1.48546267,104490.0,104480.0,0.0188144]
[1747166781886,1.4189406,104490.0,104480.0,0.0188144]
[1747166782119,1.4288606,104490.0,104480.0,0.0188144]
[1747166782573,1.50538267,104490.0,104480.0,0.0188144]
[1747166783025,1.48546267,104490.0,104480.0,0.0188144]
[1747166783244,0.23545606,104480.0,104470.0,4e-05]
[1747166783453,0.87327688,104480.0,104470.0,4e-05]
[1747166783911,0.36874546,104480.0,104470.0,4e-05]
[1747166784123,0.45605486,104480.0,104470.0,4e-05]
[1747166784595,0.35874546,104480.0,104470.0,4e-05]
[1747166784824,0.34620461,104480.0,104470.0,4e-05]
[1747166785051,0.30030461,104480.0,104470.0,0.00377257]
[1747166785268,0.31130461,104480.0,104470.0,4e-05]
[1747166785493,0.31130461,104480.0,104470.0,0.00369468]
[1747166785716,0.31130461,104480.0,104470.0,0.00369848]
[1747166786194,0.31130461,104480.0,104470.0,0.5082299]
[1747166786195,0.31887554,104480.0,104470.0,0.5082299]
[1747166786420,0.31887554,104480.0,104470.0,0.5320299]
[1747166786640,0.33387554,104480.0,104470.0,0.02749848]
[1747166786862,0.33387554,104480.0,104470.0,0.5320299]
[1747166787089,0.30787554,104480.0,104470.0,0.02749848]
[1747166787576,0.31087554,104480.0,104470.0,0.5320299]
[1747166787800,0.01257066,104480.0,104470.0,0.81932133]
[1747166788045,0.04128381,104480.0,104470.0,0.31113143]
[1747166788253,0.22313716,104480.0,104470.0,0.81924506]
[1747166788473,0.21356632,104480.0,104470.0,0.74669614]
[1747166788736,0.20399539,104480.0,104470.0,0.74669614]
[1747166789173,0.30130479,104480.0,104470.0,0.00362221]
[1747166789641,0.30130479,104480.0,104470.0,4e-05]
[1747166789916,0.30030479,104480.0,104470.0,4e-05]
[1747166790167,0.29930479,104480.0,104470.0,0.00104]
[1747166790374,0.29930479,104480.0,104470.0,0.50757142]
[1747166790591,0.29930479,104480.0,104470.0,0.00304]
[1747166791942,0.29930479,104480.0,104470.0,0.02684]
[1747166792156,0.02971224,104480.0,104470.0,0.24068251]
[1747166792386,0.21156596,104480.0,104470.0,0.04924]
[1747166793506,0.02014177,104480.0,104470.0,0.24068251]
[1747166793716,0.02014113,104480.0,104470.0,1.1043579]
[1747166793932,0.001,104480.0,104470.0,1.22081053]
[1747166795047,0.001,104480.0,104470.0,1.31811993]
[1747166796180,0.001,104480.0,104470.0,1.31611993]
[1747166796417,0.0097141,104490.0,104480.0,0.55056596]
[1747166796633,0.00014454,104490.0,104480.0,1.11186803]
[1747166796881,0.01928393,104490.0,104480.0,0.69507545]
[1747166797111,0.0097141,104490.0,104480.0,1.21874828]
[1747166797355,0.00971419,104490.0,104480.0,1.20917762]
[1747166797543,0.02028374,104490.0,104480.0,1.21974828]
[1747166797760,0.0107141,104490.0,104480.0,1.22931884]
[1747166797977,0.02028393,104490.0,104480.0,1.20160687]
[1747166798197,0.02028393,104490.0,104480.0,0.69707554]
[1747166798406,0.02028393,104490.0,104480.0,1.2111778]
[1747166798407,0.02985394,104490.0,104480.0,1.2111778]
[1747166798821,0.23082992,104490.0,104480.0,0.67793359]
[1747166799035,0.03942405,104490.0,104480.0,0.6875047]
[1747166799272,0.02028429,104490.0,104480.0,0.58062419]
[1747166799511,0.02028393,104490.0,104480.0,1.09472681]
[1747166799749,0.03942424,104490.0,104480.0,0.59976641]
[1747166800000,0.03942424,104490.0,104480.0,1.11386894]
[1747166800237,0.23083011,104490.0,104480.0,1.20160732]
[1747166800477,0.22126055,104490.0,104480.0,1.19203621]
[1747166800722,0.22126055,104490.0,104480.0,1.20160714]
[1747166800937,0.29778308,104490.0,104480.0,1.08515561]
[1747166801159,0.22126101,104490.0,104480.0,1.10429783]
[1747166801389,0.01071437,104490.0,104480.0,1.11386867]
[1747166801611,0.02985404,104490.0,104480.0,0.59976641]
[1747166801879,0.22125991,104490.0,104480.0,1.20160723]
[1747166802342,0.00114454,104490.0,104480.0,1.22074863]
[1747166802559,0.002,104510.0,104480.0,1.75149803]
[1747166802782,0.00956681,104520.0,104510.0,0.59600515]
[1747166802995,0.00956681,104520.0,104510.0,0.65669512]
[1747166803240,0.02870125,104520.0,104510.0,1.16122663]